{"text_format":"1","workbook":"xlsx","n_sheets":3,"sheets":["dane finansowe","wyjaśnienia pozycji","Arkusz3"],"not_rendered":{"charts":0,"images":0,"macros":0,"external_links":0,"defined_names":0,"comments":0,"pivot_tables":0},"unopened":[],"bounds":{"document_bytes":16777216,"sheet_cells":100000,"rows_first":2000,"rows_last":500,"rows_between":2000,"halvings":0,"cell_chars":16384,"cell_head_chars":4096},"cells_cut":0,"cells_raw":0,"read":"whole","date_system":"1900"}

{"sheet":"dane finansowe","index":0,"n_rows":54,"n_cols":10,"rows_kept":54,"cut":false,"hidden":false,"merged":[[1,2,1,8],[0,2,0,5]]}
["WNIOSKODAWCA",null,"Załącznik nr 1 do Uchwały nr 52/2023 Zarządu BS Olecko z dnia 2023-03-20"]
[null,null,"Załącznik W.10 do Instrukcji Kredytowania Klientów Instytucjonalnych Cz. II "]
[]
["zakres danych finansowych ","dane historyczne z przedostatniego pełnego roku obrachunkowego ","dane historyczne z ostatniego pełnego roku obrachunkowego ","dane za okres bieżący\n(ostatni zakończony kwartał)","prognozy ","prognozy ","prognozy ","prognozy ","prognozy "]
["Okres (np. 2023)",2021,2022]
["ilość dni w okresie (np. 360)",360,360,"90/180/270/360",360,360,360,360,360]
["Przychody ze sprzedaży",{"$f":"SUM(B8:B10)","v":0},{"$f":"SUM(C8:C10)","v":0},0,0,0,0,0,0]
["- przychody ze sprzedaży produkcji roślinnej"]
["- przychody ze sprzedaży produkcji zwierzęcej"]
["- przychody ze sprzedaży pozostałej produkcji i usług"]
["Koszty bezpośrednie ",{"$f":"SUM(B12:B14)","v":0},{"$f":"SUM(C12:C14)","v":0},0,0,0,0,0,0]
["- koszty produkcji roślinnej"]
["- koszty produkcji zwierzęcej "]
["- koszty pozostałej produkcji i usług"]
["Nadwyżka bezpośrednia z produkcji brutto (A-B)",{"$f":"B7-B11","v":0},{"$f":"C7-C11","v":0},0,0,0,0,0,0]
["Dopłaty bezpośrednie"]
["Koszty pośrednie ",{"$f":"SUM(B18:B22)","v":0},{"$f":"SUM(C18:C22)","v":0},0,0,0,0,0,0]
["- koszty ogólnogospodarcze "]
["- odsetki od kredytów/pożyczek na działalność rolniczą"]
["- podatki np. podatek rolny (inne niż podatek dochodowy) "]
["- amortyzacja "]
["- koszty czynników zewnętrznych "]
["Dochód brutto z działalności rolniczej",{"$f":"B15+B16-B17","v":0},{"$f":"C15+C16-C17","v":0},0,0,0,0,0,0]
[" - podatek dochodowy z działalności rolniczej (o ile dotyczy)"]
["Dochód netto z działalności rolniczej ",{"$f":"B23-B24","v":0},{"$f":"C23-C24","v":0},0,0,0,0,0,0]
["Dotacje "]
["Pozostałe dochody rolnika spoza gospodarstwa "]
["Koszty prowadzenia gospodarstwa domowego  "]
["Dochód osobisty (dochód netto z działalności rolniczej + dotacje+pozostałe dochody spoza gospodarstwa+amortyzacja-koszty prowadzenia gospodarstwa domowego) ",{"$f":"B25+B26+B27+B21-B28","v":0},{"$f":"C25+C26+C27+C21-C28","v":0},0,0,0,0,0,0]
[]
["UPROSZCZONY BILANS",{"$f":"B5","v":2021},{"$f":"C5","v":2022},0,0,0,0,0,0,0]
["AKTYWA ",{"$f":"B33+B37","v":0},{"$f":"C33+C37","v":0},0,{"$f":"E33+E37","v":0},0,0,0,0,0]
["Aktywa trwałe",{"$f":"SUM(B34:B36)","v":0},{"$f":"SUM(C34:C36)","v":0},0,{"$f":"SUM(E34:E36)","v":0},0,0,0,0,0]
["nieruchomości"]
["urządzenia techniczne i maszyny"]
["pozostałe akrywa trwałe"]
["Aktywa obrotowe ",{"$f":"SUM(B38:B41)","v":0},{"$f":"SUM(C38:C41)","v":0},0,{"$f":"SUM(E38:E41)","v":0},0,0,0,0,0]
["zapasy"]
["należności z tytułu dostwa i usług"]
["środki pieniężne i inne aktywa pieniężne"]
["inne"]
["PASYWA",{"$f":"B43+B44+B47","v":0},{"$f":"C43+C44+C47","v":0},0,{"$f":"E43+E44+E47","v":0},0,0,0,0,0]
["Kapitał (Fundusz własny)"]
["Zobowiązania krótkorterminowe, w tym:",{"$f":"SUM(B45:B46)","v":0},{"$f":"SUM(C45:C46)","v":0},0,{"$f":"SUM(E45:E46)","v":0},0,0,0,0,0]
["zobowiązania z tytułu dostaw i usług"]
["krótkoterminowe zobowiązania kredytowe + bieżąca część kredytów długoterminowych "]
["Zobowiązania długoterrminowe "]
["suma kontrolna:  ",{"$f":"B32-B42","v":0},{"$f":"C32-C42","v":0},0,{"$f":"E32-E42","v":0},0,0,0,0,0]
[]
[]
[]
[]
[null,null,null,"____________________________________________________"]
[null,null,null,null,"(miejscowość, data, imię, nazwisko i podpis Wnioskodawcy)"]

{"sheet":"wyjaśnienia pozycji","index":1,"n_rows":7,"n_cols":2,"rows_kept":7,"cut":false,"hidden":false,"merged":[[1,1,1,8],[2,1,2,8],[4,1,4,8],[5,1,5,8],[6,1,6,8],[3,1,3,8]]}
["wyjaśnienia do pozycji:"]
["Koszty bezpośrednie ","Koszty bezpośrednie to koszty, które:  można bez żadnej wątpliwości zaliczyć do określonej działalności produkcyjnej; ich wielkość ma proporcjonalny związek ze skalą produkcji;  mają bezpośredni wpływ na wielkość (wartość) produkcji. \nDo kosztów bezpośrednich tj. zmiennych kosztów w działalności gospodarstwa rolnego należą: \n1) nasiona i sadzeniaki;\n2) nawozy (bez wapna nawozowego);\n3) środki ochrony roślin;\n4) inseminacja zwierząt, usługi weterynaryjne i leki;\n5) pasze;\n6) ubezpieczenia specjalne (plantacji i zwierząt);\n7) pozostałe podnoszące jakość i wartość produkcji, obejmujące między innymi: \na) wydatki specjalne (opakowania, konserwanty),\nb) usługi specjalistyczne (suszenie produktów, przygotowanie do sprzedaży opłaty targowiskowe, dezynfekcja, klasyfikacja zwierząt),\nc) najem dorywczy do prac specjalistycznych."]
["Koszty pośrednie - ogólnogospodarcze","Kosztami ogólnogospodarczymi określa się grupę kosztów pośrednich, wynikających z istnienia gospodarstwa, których nie można przypisać poszczególnym działom produkcyjnym w gospodarstwie rolnym. Do kosztów ogólnogospodarczych należą koszty:\n1) energii elektrycznej;\n2) opału;\n3) paliw, smarów;\n4) remontów bieżących, konserwacji i przeglądów;\n5) usług produkcyjnych;\n6) ubezpieczeń majątkowych i komunikacyjnych;\n7) pozostałe pośrednie niebędące podatkami, amortyzacją i kosztami czynników zewnętrznych."]
["Koszty pośrednie - odsetki","dotyczy odsetek od kredytów/pożyczek finansujących działalność rolniczą: kredyty/pożyczki obrotowe, inwestycyjne, preferencyjne, linie hipoteczne udzielone przez BS w Olecku oraz przez inne banki; w przypadku kredytów/pożyczek udzielonych przez inne banki niezbedne jest załączenie do wniosku o kredyt kopii umów kredytowych/pożyczek wraz z aneksami (jeśli były zawierane)"]
["Koszty pośrednie - koszty czynników zewnętrznych ","koszty czynników zewnętrznych to koszty pośrednie, które nie są bezpośrednio związane z produkcją oraz nie stanowią kosztów ogólnogospodarczych, np. koszty pracy najemnej, czynszów i dzierżaw, prowizji."]
["Amortyzacja ","amortyzacji nie podlegają grunty oraz prawa wieczystego użytkowania gruntów"]
["Pozostałe dochody rolnika spoza gospodarstwa ","Należy wykazać pozostałe dochody netto rolnika\n Pozostałe dochody rolnika spoza gospodarstwa to:\n1) praca/ renta/ emerytura/ wynajem nieruchomości lub ruchomości;\n2) dochód rolnika z tytułu prowadzenia innej działalności np. z tytułu działalności gospodarczej;\n3) dochód netto współmałżonka (o ile dotyczy) z ww. tytułów"]

{"sheet":"Arkusz3","index":2,"n_rows":0,"n_cols":0,"rows_kept":0,"cut":false,"hidden":false,"merged":[]}